Workbook

Sheet 目录
A1: 目 录
A2: 一、一般公共预算
A3: 表1、2025年一般公共预算收入表
A4: 表2、2025年一般公共预算支出表
A5: 表3、2025年一般公共预算本级支出表
A6: 表4、2025年一般公共预算本级财力基本支出表
A7: 表5、2025年一般公共预算收支平衡表
A8: 表6、2025年一般公共预算支出表（功能科目）
A9: 表7、2025年一般公共预算基本支出表（政府经济科目）
A10: 表8、2025年一般公共预算对下税收返还和转移支付预算分项目表
A11: 表9、2025年一般公共预算对下税收返还和转移支付预算分地区表
A12: 表10、2024年政府一般债券限额和余额情况表
A13: 二、政府性基金预算
A14: 表11、2025年政府性基金预算收入表
A15: 表12、2025年政府性基金支出预算表
A16: 表13、2025年政府性基金本级支出预算表
A17: 表14、2025年政府性基金转移支付预算收入分项目表
A18: 表15、2025年政府性基金转移支付预算收入分地区表
A19: 表16、2024年政府专项债券限额和余额情况表
A20: 三、国有资本经营预算
A21: 表17、2025年国有资本经营预算收入表
A22: 表18、2025年国有资本经营预算支出表
A23: 四、社会保险基金预算
A24: 表19、2025年社会保险基金预算收入预算表
A25: 表20、2025年社会保险基金预算支出预算表
A26: 五、债务情况表
A27: 表21、2024年地方债务限额余额情况表
A28: 表22、2024年末地方政府债券发行、还本付息情况表
A29: 表23、2024年新增债券资金使用安排情况表
A30: 表24、2025年地方政府债券还本付息预算表
A31: 六、其他
A32: 表25、2025年一般公共预算“三公”经费预算表
A33: 表26、2025年预算绩效管理工作要点
A34: 表27、2024年乡村振兴资金公示网站汇总表

Sheet 表1一般公共预算收入表
A1: 表1
A2: 2025年一般公共预算收入表
D3: 单位：万元
A4: 项目 | B4: 上年决算数 | C4: 预算数 | D4: 预算数为决算数%
A5: 一、税收收入 | B5: 39405 | C5: 41197 | D5: =C5/B5 -> 1.05
A6: 增值税 | B6: 8524 | C6: 8746 | D6: =C6/B6 -> 1.03
A7: 企业所得税 | B7: 1100 | C7: 995 | D7: 0.90
A8: 企业所得税退税
A9: 个人所得税 | B9: 201 | C9: 207 | D9: =C9/B9 -> 1.03
A10: 资源税 | C10: 2
A11: 城市维护建设税 | B11: 1103 | C11: 1125 | D11: 1.02
A12: 房产税 | B12: 1746 | C12: 1918 | D12: 1.10
A13: 印花税 | B13: 1762 | C13: 1766 | D13: 1.00
A14: 城镇土地使用税 | B14: 1151 | C14: 1488 | D14: 1.29
A15: 土地增值税 | B15: 14633 | C15: 14910 | D15: 1.02
A16: 车船税 | B16: 3052 | C16: 3362 | D16: 1.10
A17: 耕地占用税 | B17: 3937 | C17: 4467 | D17: 1.13
A18: 契税 | B18: 2196 | C18: 2211 | D18: 1.01
A19: 烟叶税
A20: 环境保护税
A21: 其他税收收入 | C21: 0
A22: 二、非税收入 | B22: 17059 | C22: 17352 | D22: 1.02
A23: 专项收入 | B23: 1388 | C23: 1410 | D23: 1.02
A24: 行政事业性收费收入 | B24: 1541 | C24: 814 | D24: 0.53
A25: 罚没收入 | B25: 1887 | C25: 6324 | D25: 3.35
A26: 国有资本经营收入
A27: 国有资源（资产）有偿使用收入 | B27: 9641 | C27: 8443 | D27: =C27/B27 -> 0.88
A28: 捐赠收入 | B28: 286
A29: 政府住房基金收入 | B29: 100 | C29: 50 | D29: 0.50
A30: 其他收入 | B30: 2216 | C30: 311 | D30: 0.14
A33: 收入合计 | B33: 56464 | C33: 58549 | D33: 1.04

Sheet 表2一般公共预算支出表
A1: 表2
A2: 2025年一般公共预算支出表
D3: 单位：万元
A4: 代码 | B4: 项目 | C4: 上年决算数 | D4: 预算数
B5: 一般公共预算支出 | C5: =SUM(C6,C7,C8,C9,C10,C11,C12,C13,C14,C15,C16,C17,C18,C19,C20,C21,C22,C23,C24,C25,C26,C28,C29,C30) -> 262,811 | D5: =D6+D7+D8+D9+D10+D11+D12+D13+D14+D15+D16+D17+D18+D19+D20+D21+D22+D23+D24+D25+D26+D28+D29+D27 -> 252593
A6: 201 | B6: 一般公共服务支出 | C6: 22,629 | D6: 34169
A7: 202 | B7: 外交支出 | C7: 0 | D7: 0
A8: 203 | B8: 国防支出 | C8: 184 | D8: 176
A9: 204 | B9: 公共安全支出 | C9: 3,172 | D9: 2802
A10: 205 | B10: 教育支出 | C10: 31,198 | D10: 33094
A11: 206 | B11: 科学技术支出 | C11: 3,361 | D11: 3525
A12: 207 | B12: 文化旅游体育与传媒支出 | C12: 2,497 | D12: 3028
A13: 208 | B13: 社会保障和就业支出 | C13: 46,049 | D13: 51682
A14: 210 | B14: 卫生健康支出 | C14: 16,360 | D14: 17106
A15: 211 | B15: 节能环保支出 | C15: 10,803 | D15: 11810
A16: 212 | B16: 城乡社区支出 | C16: 6,644 | D16: 5670
A17: 213 | B17: 农林水支出 | C17: 88,491 | D17: 55192
A18: 214 | B18: 交通运输支出 | C18: 8,734 | D18: 9288
A19: 215 | B19: 资源勘探工业信息等支出 | C19: 979 | D19: 1475
A20: 216 | B20: 商业服务业等支出 | C20: 734 | D20: 787
A21: 217 | B21: 金融支出
A22: 219 | B22: 援助其他地区支出
A23: 220 | B23: 自然资源海洋气象等支出 | C23: 2,903 | D23: 4159
A24: 221 | B24: 住房保障支出 | C24: 7,280 | D24: 8475
A25: 222 | B25: 粮油物资储备支出 | C25: 1,105 | D25: 987
A26: 224 | B26: 灾害防治及应急管理支出 | C26: 4,052 | D26: 1322
A27: 227 | B27: 预备费 | C27: 0 | D27: 2300
A28: 229 | B28: 其他支出(类) | C28: 55 | D28: 24
A29: 232 | B29: 债务付息支出 | C29: 5,581 | D29: 5522
A30: 233 | B30: 债务发行费用支出 | C30: 0 | D30: 0

Sheet 表3一般公共预算本级支出表
A1: 表3
A2: 2025年一般公共预算本级支出表
A3: （因我区镇办作为预算单位管理，本级支出与支出数一致）
D4: 单位：万元
A5: 代码 | B5: 项目 | C5: 上年决算数 | D5: 预算数
B6: 一般公共预算支出 | C6: =SUM(C7,C8,C9,C10,C11,C12,C13,C14,C15,C16,C17,C18,C19,C20,C21,C22,C23,C24,C25,C26,C27,C28,C29,C30) -> 262,811 | D6: =D7+D8+D9+D10+D11+D12+D13+D14+D15+D16+D17+D18+D19+D20+D21+D22+D23+D24+D25+D26+D27+D28+D29 -> 250,293
A7: 201 | B7: 一般公共服务支出 | C7: 22,629 | D7: 34,169
A8: 202 | B8: 外交支出 | C8: 0 | D8: 0
A9: 203 | B9: 国防支出 | C9: 184 | D9: 176
A10: 204 | B10: 公共安全支出 | C10: 3,172 | D10: 2,802
A11: 205 | B11: 教育支出 | C11: 31,198 | D11: 33,094
A12: 206 | B12: 科学技术支出 | C12: 3,361 | D12: 3,525
A13: 207 | B13: 文化旅游体育与传媒支出 | C13: 2,497 | D13: 3,028
A14: 208 | B14: 社会保障和就业支出 | C14: 46,049 | D14: 51,682
A15: 210 | B15: 卫生健康支出 | C15: 16,360 | D15: 17,106
A16: 211 | B16: 节能环保支出 | C16: 10,803 | D16: 11,810
A17: 212 | B17: 城乡社区支出 | C17: 6,644 | D17: 5,670
A18: 213 | B18: 农林水支出 | C18: 88,491 | D18: 55,192
A19: 214 | B19: 交通运输支出 | C19: 8,734 | D19: 9,288
A20: 215 | B20: 资源勘探工业信息等支出 | C20: 979 | D20: 1,475
A21: 216 | B21: 商业服务业等支出 | C21: 734 | D21: 787
A22: 217 | B22: 金融支出
A23: 219 | B23: 援助其他地区支出
A24: 220 | B24: 自然资源海洋气象等支出 | C24: 2,903 | D24: 4,159
A25: 221 | B25: 住房保障支出 | C25: 7,280 | D25: 8,475
A26: 222 | B26: 粮油物资储备支出 | C26: 1,105 | D26: 987
A27: 224 | B27: 灾害防治及应急管理支出 | C27: 4,052 | D27: 1,322
A28: 229 | B28: 其他支出(类) | C28: 55 | D28: 24
A29: 232 | B29: 债务付息支出 | C29: 5,581 | D29: 5,522
A30: 233 | B30: 债务发行费用支出 | C30: 0 | D30: 0

Sheet 表4.一般公共预算本级财力基本支出表
A1: 表4
A2: 2025年一般公共预算本级财力基本支出表
B3: 单位：万元
A4: 项目 | B4: 预算数
A5: 一、一般公共服务 | B5: 10074
A6: 二、外交支出 | B6: 0
A7: 三、国防支出 | B7: 38
A8: 四、公共安全支出 | B8: 343
A9: 五、教育支出 | B9: 12645
A10: 六、科学技术支出 | B10: 160
A11: 七、文化旅游体育与传媒支出 | B11: 512
A12: 八、社会保障和就业支出 | B12: 11645
A13: 九、卫生健康支出 | B13: 6247
A14: 十、节能环保支出 | B14: 0
A15: 十一、城乡社区支出 | B15: 955
A16: 十二、农林水支出 | B16: 2523
A17: 十三、交通运输支出 | B17: 1154
A18: 十四、资源勘探信息等支出 | B18: 175
A19: 十五、商业服务业等支出 | B19: 112
A20: 十六、金融支出 | B20: 0
A21: 十七、援助其他地区支出 | B21: 0
A22: 十八、自然资源海洋气象等支出 | B22: 548
A23: 十九、住房保障支出 | B23: 3538
A24: 二十、粮油物资储备支出 | B24: 0
A25: 二十一、灾害防治及应急管理支出 | B25: 164
A26: 二十二、预备费 | B26: 0
A27: 二十三、债务还本支出 | B27: 0
A28: 二十三、债务付息支出 | B28: 0
A29: 二十四、债务发行费用支出 | B29: 0
A30: 二十五、其他支出 | B30: 0
A31: 合 计 | B31: 50833

Sheet 表5一般公共预算收支平衡表
A1: 表5
A2: 2025年一般公共预算资金收支平衡表
D3: 单位：万元
A4: 收入 | C4: 支出
A5: 项目 | B5: 2025年预算数 | C5: 项目 | D5: 2025年预算数
A6: 一般公共预算收入 | B6: 58549 | C6: 一般公共预算支出 | D6: 252593
A7: 上级补助收入 | B7: 146754 | C7: 上解支出 | D7: 4953
A8: 返还性收入 | B8: 3916 | C8: 体制上解支出
A9: 一般性转移支付收入 | B9: 95791 | C9: 专项上解支出 | D9: 4953
A10: 专项转移支付收入 | B10: 47047 | C10: 地方政府一般债务还本支出 | D10: 1598
A11: 地方政府一般债务收入 | C11: 调出资金
A12: 调入资金 | B12: 33257 | C12: 补充预算稳定调节基金 | D12: 0
A13: 从政府性基金预算调入 | B13: 33257 | C13: 年终结余 | D13: 23170
A14: 从国有资本经营预算调入
A15: 从其他资金调入
A16: 动用预算稳定调节基金
A17: 上年结转 | B17: 43754
A18: 收入总计 | B18: 282314 | C18: 支出总计 | D18: 282314

Sheet 表6一般公共预算支出明细表(功能科目）
A1: 表6
A2: 2025年一般公共预算支出表
C3: 单位：万元
A4: 代码 | B4: 项目 | C4: 预算数
B5: 一般公共预算支出 | C5: =SUM(C6,C241,C281,C300,C390,C442,C498,C555,C684,C759,C836,C859,C966,C1024,C1088,C1108,C1138,C1148,C1193,C1214,C1258,C1308,C1310,C1313,C1325) -> 252593
A6: 201 | B6: 一般公共服务支出 | C6: =SUM(C7+C19+C28+C39+C50+C61+C72+C80+C89+C102+C111+C122+C134+C141+C149+C155+C162+C169+C176+C183+C190+C198+C204+C210+C217+C235+C238+C232) -> 34169
A7: 20101 | B7: 人大事务 | C7: =SUM(C8:C18) -> 827
A8: 2010101 | B8: 行政运行 | C8: 827
A9: 2010102 | B9: 一般行政管理事务 | C9: 0
A10: 2010103 | B10: 机关服务 | C10: 0
A11: 2010104 | B11: 人大会议 | C11: 0
A12: 2010105 | B12: 人大立法 | C12: 0
A13: 2010106 | B13: 人大监督 | C13: 0
A14: 2010107 | B14: 人大代表履职能力提升 | C14: 0
A15: 2010108 | B15: 代表工作 | C15: 0
A16: 2010109 | B16: 人大信访工作 | C16: 0
A17: 2010150 | B17: 事业运行 | C17: 0
A18: 2010199 | B18: 其他人大事务支出 | C18: 0
A19: 20102 | B19: 政协事务 | C19: =SUM(C20:C27) -> 374
A20: 2010201 | B20: 行政运行 | C20: 374
A21: 2010202 | B21: 一般行政管理事务 | C21: 0
A22: 2010203 | B22: 机关服务 | C22: 0
A23: 2010204 | B23: 政协会议 | C23: 0
A24: 2010205 | B24: 委员视察 | C24: 0
A25: 2010206 | B25: 参政议政 | C25: 0
A26: 2010250 | B26: 事业运行 | C26: 0
A27: 2010299 | B27: 其他政协事务支出 | C27: 0
A28: 20103 | B28: 政府办公厅(室)及相关机构事务 | C28: =SUM(C29:C38) -> 2452
A29: 2010301 | B29: 行政运行 | C29: 765
A30: 2010302 | B30: 一般行政管理事务 | C30: 0
A31: 2010303 | B31: 机关服务 | C31: 1348
A32: 2010304 | B32: 专项服务 | C32: 0
A33: 2010305 | B33: 专项业务及机关事务管理 | C33: 0
A34: 2010306 | B34: 政务公开审批 | C34: 238
A35: 2010308 | B35: 信访事务 | C35: 0
A36: 2010309 | B36: 参事事务 | C36: 0
A37: 2010350 | B37: 事业运行 | C37: 0
A38: 2010399 | B38: 其他政府办公厅(室)及相关机构事务支出 | C38: 101
A39: 20104 | B39: 发展与改革事务 | C39: =SUM(C40:C49) -> 228
A40: 2010401 | B40: 行政运行 | C40: 176
A41: 2010402 | B41: 一般行政管理事务 | C41: 0
A42: 2010403 | B42: 机关服务 | C42: 0
A43: 2010404 | B43: 战略规划与实施 | C43: 0
A44: 2010405 | B44: 日常经济运行调节 | C44: 0
A45: 2010406 | B45: 社会事业发展规划 | C45: 0
A46: 2010407 | B46: 经济体制改革研究 | C46: 0
A47: 2010408 | B47: 物价管理 | C47: 0
A48: 2010450 | B48: 事业运行 | C48: 0
A49: 2010499 | B49: 其他发展与改革事务支出 | C49: 52
A50: 20105 | B50: 统计信息事务 | C50: =SUM(C51:C60) -> 373
A51: 2010501 | B51: 行政运行 | C51: 151
A52: 2010502 | B52: 一般行政管理事务 | C52: 0
A53: 2010503 | B53: 机关服务 | C53: 0
A54: 2010504 | B54: 信息事务 | C54: 0
A55: 2010505 | B55: 专项统计业务 | C55: 0
A56: 2010506 | B56: 统计管理 | C56: 172
A57: 2010507 | B57: 专项普查活动 | C57: 0
A58: 2010508 | B58: 统计抽样调查 | C58: 0
A59: 2010550 | B59: 事业运行 | C59: 0
A60: 2010599 | B60: 其他统计信息事务支出 | C60: 50
A61: 20106 | B61: 财政事务 | C61: =SUM(C62:C71) -> 2147
A62: 2010601 | B62: 行政运行 | C62: 1555
A63: 2010602 | B63: 一般行政管理事务 | C63: 506
A64: 2010603 | B64: 机关服务 | C64: 0
A65: 2010604 | B65: 预算改革业务 | C65: 0
A66: 2010605 | B66: 财政国库业务 | C66: 86
A67: 2010606 | B67: 财政监察 | C67: 0
A68: 2010607 | B68: 信息化建设 | C68: 0
A69: 2010608 | B69: 财政委托业务支出 | C69: 0
A70: 2010650 | B70: 事业运行 | C70: 0
A71: 2010699 | B71: 其他财政事务支出 | C71: 0
A72: 20107 | B72: 税收事务 | C72: =SUM(C73:C79) -> 1350
A73: 2010701 | B73: 行政运行 | C73: 0
A74: 2010702 | B74: 一般行政管理事务 | C74: 0
A75: 2010703 | B75: 机关服务 | C75: 0
A76: 2010709 | B76: 信息化建设 | C76: 0
A77: 2010710 | B77: 税收业务 | C77: 0
A78: 2010750 | B78: 事业运行 | C78: 0
A79: 2010799 | B79: 其他税收事务支出 | C79: 1350
A80: 20108 | B80: 审计事务 | C80: =SUM(C81:C88) -> 367
A81: 2010801 | B81: 行政运行 | C81: 229
A82: 2010802 | B82: 一般行政管理事务 | C82: 0
A83: 2010803 | B83: 机关服务 | C83: 0
A84: 2010804 | B84: 审计业务 | C84: 11
A85: 2010805 | B85: 审计管理 | C85: 0
A86: 2010806 | B86: 信息化建设 | C86: 0
A87: 2010850 | B87: 事业运行 | C87: 127
A88: 2010899 | B88: 其他审计事务支出 | C88: 0
A89: 20109 | B89: 海关事务 | C89: =SUM(C90:C101) -> 0
A90: 2010901 | B90: 行政运行 | C90: 0
A91: 2010902 | B91: 一般行政管理事务 | C91: 0
A92: 2010903 | B92: 机关服务 | C92: 0
A93: 2010905 | B93: 缉私办案 | C93: 0
A94: 2010907 | B94: 口岸管理 | C94: 0
A95: 2010908 | B95: 信息化建设 | C95: 0
A96: 2010909 | B96: 海关关务 | C96: 0
A97: 2010910 | B97: 关税征管 | C97: 0
A98: 2010911 | B98: 海关监管 | C98: 0
A99: 2010912 | B99: 检验检疫 | C99: 0
A100: 2010950 | B100: 事业运行 | C100: 0
A101: 2010999 | B101: 其他海关事务支出 | C101: 0
A102: 20111 | B102: 纪检监察事务 | C102: =SUM(C103:C110) -> 1047
A103: 2011101 | B103: 行政运行 | C103: 1047
A104: 2011102 | B104: 一般行政管理事务 | C104: 0
A105: 2011103 | B105: 机关服务 | C105: 0
A106: 2011104 | B106: 大案要案查处 | C106: 0
A107: 2011105 | B107: 派驻派出机构 | C107: 0
A108: 2011106 | B108: 巡视工作 | C108: 0
A109: 2011150 | B109: 事业运行 | C109: 0
A110: 2011199 | B110: 其他纪检监察事务支出 | C110: 0
A111: 20113 | B111: 商贸事务 | C111: =SUM(C112:C121) -> 564
A112: 2011301 | B112: 行政运行 | C112: 176
A113: 2011302 | B113: 一般行政管理事务 | C113: 0
A114: 2011303 | B114: 机关服务 | C114: 0
A115: 2011304 | B115: 对外贸易管理 | C115: 0
A116: 2011305 | B116: 国际经济合作 | C116: 0
A117: 2011306 | B117: 外资管理 | C117: 0
A118: 2011307 | B118: 国内贸易管理 | C118: 0
A119: 2011308 | B119: 招商引资 | C119: 0
A120: 2011350 | B120: 事业运行 | C120: 30
A121: 2011399 | B121: 其他商贸事务支出 | C121: 358
A122: 20114 | B122: 知识产权事务 | C122: =SUM(C123:C133) -> 0
A123: 2011401 | B123: 行政运行 | C123: 0
A124: 2011402 | B124: 一般行政管理事务 | C124: 0
A125: 2011403 | B125: 机关服务 | C125: 0
A126: 2011404 | B126: 专利审批 | C126: 0
A127: 2011405 | B127: 知识产权战略和规划 | C127: 0
A128: 2011408 | B128: 国际合作与交流 | C128: 0
A129: 2011409 | B129: 知识产权宏观管理 | C129: 0
A130: 2011410 | B130: 商标管理 | C130: 0
A131: 2011411 | B131: 原产地地理标志管理 | C131: 0
A132: 2011450 | B132: 事业运行 | C132: 0
A133: 2011499 | B133: 其他知识产权事务支出 | C133: 0
A134: 20123 | B134: 民族事务 | C134: =SUM(C135:C140) -> 0
A135: 2012301 | B135: 行政运行 | C135: 0
A136: 2012302 | B136: 一般行政管理事务 | C136: 0
A137: 2012303 | B137: 机关服务 | C137: 0
A138: 2012304 | B138: 民族工作专项 | C138: 0
A139: 2012350 | B139: 事业运行 | C139: 0
A140: 2012399 | B140: 其他民族事务支出 | C140: 0
A141: 20125 | B141: 港澳台事务 | C141: =SUM(C142:C148) -> 0
A142: 2012501 | B142: 行政运行 | C142: 0
A143: 2012502 | B143: 一般行政管理事务 | C143: 0
A144: 2012503 | B144: 机关服务 | C144: 0
A145: 2012504 | B145: 港澳事务 | C145: 0
A146: 2012505 | B146: 台湾事务 | C146: 0
A147: 2012550 | B147: 事业运行 | C147: 0
A148: 2012599 | B148: 其他港澳台事务支出 | C148: 0
A149: 20126 | B149: 档案事务 | C149: =SUM(C150:C154) -> 167
A150: 2012601 | B150: 行政运行 | C150: 167
A151: 2012602 | B151: 一般行政管理事务 | C151: 0
A152: 2012603 | B152: 机关服务 | C152: 0
A153: 2012604 | B153: 档案馆 | C153: 0
A154: 2012699 | B154: 其他档案事务支出 | C154: 0
A155: 20128 | B155: 民主党派及工商联事务 | C155: =SUM(C156:C161) -> 24
A156: 2012801 | B156: 行政运行 | C156: 0
A157: 2012802 | B157: 一般行政管理事务 | C157: 0
A158: 2012803 | B158: 机关服务 | C158: 0
A159: 2012804 | B159: 参政议政 | C159: 0
A160: 2012850 | B160: 事业运行 | C160: 0
A161: 2012899 | B161: 其他民主党派及工商联事务支出 | C161: 24
A162: 20129 | B162: 群众团体事务 | C162: =SUM(C163:C168) -> 332
A163: 2012901 | B163: 行政运行 | C163: 298
A164: 2012902 | B164: 一般行政管理事务 | C164: 0
A165: 2012903 | B165: 机关服务 | C165: 0
A166: 2012906 | B166: 工会事务 | C166: 34
A167: 2012950 | B167: 事业运行 | C167: 0
A168: 2012999 | B168: 其他群众团体事务支出 | C168: 0
A169: 20131 | B169: 党委办公厅(室)及相关机构事务 | C169: =SUM(C170:C175) -> 776
A170: 2013101 | B170: 行政运行 | C170: 765
A171: 2013102 | B171: 一般行政管理事务 | C171: 0
A172: 2013103 | B172: 机关服务 | C172: 0
A173: 2013105 | B173: 专项业务 | C173: 0
A174: 2013150 | B174: 事业运行 | C174: 0
A175: 2013199 | B175: 其他党委办公厅(室)及相关机构事务支出 | C175: 11
A176: 20132 | B176: 组织事务 | C176: =SUM(C177:C182) -> 661
A177: 2013201 | B177: 行政运行 | C177: 661
A178: 2013202 | B178: 一般行政管理事务 | C178: 0
A179: 2013203 | B179: 机关服务 | C179: 0
A180: 2013204 | B180: 公务员事务 | C180: 0
A181: 2013250 | B181: 事业运行 | C181: 0
A182: 2013299 | B182: 其他组织事务支出 | C182: 0
A183: 20133 | B183: 宣传事务 | C183: =SUM(C184:C189) -> 295
A184: 2013301 | B184: 行政运行 | C184: 295
A185: 2013302 | B185: 一般行政管理事务 | C185: 0
A186: 2013303 | B186: 机关服务 | C186: 0
A187: 2013304 | B187: 宣传管理 | C187: 0
A188: 2013350 | B188: 事业运行 | C188: 0
A189: 2013399 | B189: 其他宣传事务支出 | C189: 0
A190: 20134 | B190: 统战事务 | C190: =SUM(C191:C197) -> 261
A191: 2013401 | B191: 行政运行 | C191: 261
A192: 2013402 | B192: 一般行政管理事务 | C192: 0
A193: 2013403 | B193: 机关服务 | C193: 0
A194: 2013404 | B194: 宗教事务 | C194: 0
A195: 2013405 | B195: 华侨事务 | C195: 0
A196: 2013450 | B196: 事业运行 | C196: 0
A197: 2013499 | B197: 其他统战事务支出 | C197: 0
A198: 20135 | B198: 对外联络事务 | C198: =SUM(C199:C203) -> 0
A199: 2013501 | B199: 行政运行 | C199: 0
A200: 2013502 | B200: 一般行政管理事务 | C200: 0
... 1128 more rows

Sheet 表7一般公共预算基本支出经济分类情况表（经济科目.）
A1: 表7
A2: 2025年一般公共预算基本支出表（政府经济科目）
C3: 单位：万元
A4: 政府科目编码 | B4: 政府科目名称 | C4: 合计
B6: 合计 | C6: =C7+C12+C27+C23 -> 50833
A7: 501 | B7: 机关工资福利支出 | C7: =SUM(C8:C11) -> 18103
A8: 50101 | B8: 工资奖金津补贴 | C8: 13408
A9: 50102 | B9: 社会保障缴费 | C9: 3133
A10: 50103 | B10: 住房公积金 | C10: 1562
A11: 50199 | B11: 其他工资福利支出 | C11: 0
A12: 502 | B12: 机关商品和服务支出 | C12: =SUM(C13:C22) -> 2357
A13: 50201 | B13: 办公经费 | C13: 1794
A14: 50202 | B14: 会议费 | C14: 49
A15: 50203 | B15: 培训费 | C15: 26
A16: 50204 | B16: 专用材料购置费 | C16: 0
A17: 50205 | B17: 委托业务费 | C17: 52
A18: 50206 | B18: 公务接待费 | C18: 75
A19: 50207 | B19: 因公出国（境）费用 | C19: 0
A20: 50208 | B20: 公务用车运行维护费 | C20: 27
A21: 50209 | B21: 维修（护）费 | C21: 75
A22: 50299 | B22: 其他商品和服务支出 | C22: 259
A23: 505 | B23: 对事业单位经常性补助 | C23: =SUM(C24:C26) -> 24595
A24: 50501 | B24: 工资福利支出 | C24: 23977
A25: 50502 | B25: 商品和服务支出 | C25: 618
A26: 50599 | B26: 其他对事业单位补助 | C26: 0
A27: 509 | B27: 对个人和家庭的补助 | C27: =SUM(C28:C32) -> 5778
A28: 50901 | B28: 社会福利和救助 | C28: 4691
A29: 50902 | B29: 助学金 | C29: 0
A30: 50903 | B30: 个人农业生产补贴 | C30: 0
A31: 50905 | B31: 离退休费 | C31: 1087
A32: 50999 | B32: 其他对个人和家庭的补助 | C32: 0

Sheet 表8.一般公共预算税收返还和转移支付预算分项目表
A1: 表8
A2: 2025年一般公共预算对下税收返还和转移支付预算分项目表
A3: (因我区镇办作为预算单位管理，此表为空）
A4: 单位：万元
A5: 项 目 | B5: 金额
A6: 合 计
A7: 一、税收返还
A8: 增值税和消费税返还等
A9: 所得税基数返还
A10: 成品油税费改革税收返还
A11: 其他税收返还
A12: 二、一般性转移支付
A13: 均衡性转移支付
A14: 重点生态功能区转移支付
A15: 产粮(油)大县奖励资金
A16: 县级基本财力保障机制奖补资金
A17: 革命老区、民族和边境地区转移支付
A18: 资源枯竭城市转移支付
A19: 固定数额补助
A20: 其中： 调整工资转移支付
A21: 农村税费改革转移支付
A22: 工商部门停征两费等转移支付
A23: 其他
A24: 企业事业单位划转补助收入
A25: 体制结算补助
A26: 基层公检法司转移支付
A27: 义务教育等转移支付
A28: 基本养老金和低保等转移支付
A29: 新型农村合作医疗等转移支付
A30: 农村综合改革转移支付
A31: 其他一般性转移支付
A32: 三、专项转移支付
A33: 一般公共服务
A34: 国防
A35: 公共安全
A36: 教育
A37: 科学技术
A38: 文化体育与传媒
A39: 社会保障和就业
A40: 医疗卫生与计划生育
A41: 节能环保
A42: 城乡社区
A43: 农林水
A44: 交通运输
A45: 资源勘探信息等
A46: 商业服务业等
A47: 金融
A48: 国土海洋气象等
A49: 住房保障
A50: 粮油物资储备
A51: 其他支出
A52: 住房保障
A53: 粮油物资储备
A54: 其他收入

Sheet 表9.一般公共预算税收返还和转移支付预算分地区表
A1: 表9
A2: 2025年一般公共预算对下税收返还和转移支付预算分地区表
A3: (因我区镇办作为预算单位管理，此表为空）
A4: 单位：万元
A5: 地区 | B5: 决 算 数

Sheet 表10、政府一般债券限额和余额情况表.
A1: 表10
A2: 2024年君山区政府一般债务限额和余额情况表
C3: 单位：万元
A4: 单位 | B4: 一般债务限额 | C4: 一般债务余额
A5: 君山区 | B5: 179204 | C5: 175688

Sheet 表11.政府性基金预算收入表
A1: 表11
A2: 2025年政府性基金预算收入明细表
B3: 单位：万元
A4: 项目 | B4: 预算数
A5: 一、农网还贷资金收入
A6: 二、海南省高等级公路车辆通行附加费收入
A7: 三、港口建设费收入
A8: 四、国家电影事业发展专项资金收入
A9: 五、国有土地收益基金收入
A10: 六、农业土地开发资金收入
A11: 七、国有土地使用权出让收入 | B11: 50000
A12: 八、大中型水库库区基金收入
A13: 九、彩票公益金收入
A14: 十、城市基础设施配套费收入 | B14: 600
A15: 十一、小型水库移民扶助基金收入
A16: 十二、国家重大水利工程建设基金收入
A17: 十三、车辆通行费
A18: 十四、污水处理费收入 | B18: 600
A19: 十五、彩票发行机构和彩票销售机构的业务费用
A20: 十六、其他政府性基金收入 | B20: 29850
A21: 十七、专项债券对应项目专项收入
B23: =SUM(B24:B26) -> 0
A33: 收入合计 | B33: =SUM(B5:B21) -> 81050
A34: 转移性收入 | B34: 11397
A35: 政府性基金转移收入
A36: 政府性基金补助收入
A37: 政府性基金上解收入
A38: 上年结余收入 | B38: 11397
A39: 调入资金
A40: 其中：地方政府性基金调入专项收入 | B40: =[1]表十!C22 -> 0
A41: 地方政府专项债务收入
A42: 地方政府专项债务转贷收入
A46: 收入总计 | B46: =B33+B34 -> 92447

Sheet 表12.政府性基金预算支出表
A1: 表12
A2: 2025年政府性基金预算支出表
B3: 单位：万元
A4: 项 目 | B4: 预算数
A5: 一、文化旅游体育与传媒支出 | B5: =B6+B12+B18 -> 0
A6: 国家电影事业发展专项资金安排的支出 | B6: =SUM(B7:B11) -> 0
A7: 资助国产影片放映
A8: 资助影院建设
A9: 资助少数民族语电影译制
A10: 购买农村电影公益性放映版权服务
A11: 其他国家电影事业发展专项资金支出
A12: 旅游发展基金支出 | B12: =SUM(B13:B17) -> 0
A13: 宣传促销
A14: 行业规划
A15: 旅游事业补助
A16: 地方旅游开发项目补助
A17: 其他旅游发展基金支出
A18: 国家电影事业发展专项资金对应专项债务收入安排的支出 | B18: =SUM(B19:B20) -> 0
A19: 资助城市影院
A20: 其他国家电影事业发展专项资金对应专项债务收入支出
A21: 二、节能环保支出 | B21: =B22+B27 -> 0
A22: 可再生能源电价附加收入安排的支出 | B22: =SUM(B23:B26) -> 0
A23: 风力发电补助
A24: 太阳能发电补助
A25: 生物质能发电补助
A26: 其他可再生能源电价附加收入安排的支出
A27: 废弃电器电子产品处理基金支出 | B27: =SUM(B28:B31) -> 0
A28: 回收处理费用补贴
A29: 信息系统建设
A30: 基金征管经费
A31: 其他废弃电器电子产品处理基金支出
A32: 三、城乡社区支出 | B32: 24093
A33: 国有土地使用权出让收入安排的支出 | B33: 22692
A34: 征地和拆迁补偿支出 | B34: 15201
A35: 土地开发支出
A36: 城市建设支出 | B36: 5635
A37: 农村基础设施建设支出 | B37: 1856
A38: 补助被征地农民支出
A39: 土地出让业务支出
A40: 廉租住房支出
A41: 支付破产或改制企业职工安置费
A42: 棚户区改造支出
A43: 公共租赁住房支出
A44: 保障性住房租金补贴
A45: 其他国有土地使用权出让收入安排的支出
A46: 国有土地收益基金安排的支出 | B46: =SUM(B47:B49) -> 0
A47: 征地和拆迁补偿支出
A48: 土地开发支出
A49: 其他国有土地收益基金支出
A50: 农业土地开发资金安排的支出
A51: 城市基础设施配套费安排的支出 | B51: 600
A52: 城市公共设施
A53: 城市环境卫生
A54: 公有房屋
A55: 城市防洪
A56: 其他城市基础设施配套费安排的支出 | B56: 600
A57: 污水处理费收入安排的支出 | B57: 800
A58: 污水处理设施建设和运营
A59: 代征手续费
A60: 其他污水处理费安排的支出 | B60: 800
A61: 土地储备专项债券收入安排的支出 | B61: =SUM(B62:B64) -> 0
A62: 征地和拆迁补偿支出
A63: 土地开发支出
A64: 其他土地储备专项债券收入安排的支出
A65: 棚户区改造专项债券收入安排的支出 | B65: =SUM(B66:B68) -> 0
A66: 征地和拆迁补偿支出
A67: 土地开发支出
A68: 其他棚户区改造专项债券收入安排的支出
A69: 城市基础设施配套费对应专项债务收入安排的支出 | B69: =SUM(B70:B74) -> 0
A70: 城市公共设施
A71: 城市环境卫生
A72: 公有房屋
A73: 城市防洪
A74: 其他城市基础设施配套费对应专项债务收入安排的支出
A75: 污水处理费对应专项债务收入安排的支出 | B75: =SUM(B76:B77) -> 0
A76: 污水处理设施建设和运营
A77: 其他污水处理费对应专项债务收入安排的支出
A78: 国有土地使用权出让收入对应专项债务收入安排的支出 | B78: =SUM(B79:B86) -> 0
A79: 征地和拆迁补偿支出
A80: 土地开发支出
A81: 城市建设支出
A82: 农村基础设施建设支出
A83: 廉租住房支出
A84: 棚户区改造支出
A85: 公共租赁住房支出
A86: 其他国有土地使用权出让收入对应专项债务收入安排的支出
A87: 四、农林水支出 | B87: =B88+B98+B93+B103+B107+B111 -> 0
A88: 大中型水库库区基金安排的支出 | B88: =SUM(B89:B92) -> 0
A89: 基础设施建设和经济发展
A90: 解决移民遗留问题
A91: 库区防护工程维护
A92: 其他大中型水库库区基金支出
A93: 三峡水库库区基金支出 | B93: =SUM(B94:B97) -> 0
A94: 基础设施建设和经济发展
A95: 解决移民遗留问题
A96: 库区维护和管理
A97: 其他三峡水库库区基金支出
A98: 国家重大水利工程建设基金安排的支出 | B98: =SUM(B99:B102) -> 0
A99: 南水北调工程建设
A100: 三峡后续工作
A101: 地方重大水利工程建设
A102: 其他重大水利工程建设基金支出
A103: 大中型水库移民后期扶持基金支出
A104: 移民补助
A105: 基础设施建设和经济发展
A106: 其他大中型水库移民后期扶持基金支出
A107: 小型水库移民扶助基金安排的支出
A108: 移民补助
A109: 基础设施建设和经济发展
A110: 其他小型水库移民扶助基金支出
A111: 小型水库移民扶助基金对应专项债务收入安排的支出
A112: 基础设施建设和经济发展
A113: 其他小型水库移民扶助基金对应专项债务收入安排的支出
A114: 五、交通运输支出 | B114: =B115+B120+B125+B130+B139+B146+B155+B158+B161+B162 -> 0
A115: 海南省高等级公路车辆通行附加费安排的支出 | B115: =SUM(B116:B119) -> 0
A116: 公路建设
A117: 公路养护
A118: 公路还贷
A119: 其他海南省高等级公路车辆通行附加费安排的支出
A120: 车辆通行费安排的支出 | B120: =SUM(B121:B124) -> 0
A121: 公路还贷
A122: 政府还贷公路养护
A123: 政府还贷公路管理
A124: 其他车辆通行费安排的支出
A125: 港口建设费安排的支出 | B125: =SUM(B126:B129) -> 0
A126: 港口设施
A127: 航道建设和维护
A128: 航运保障系统建设
A129: 其他港口建设费安排的支出
A130: 铁路建设基金支出 | B130: =SUM(B131:B138) -> 0
A131: 铁路建设投资
A132: 购置铁路机车车辆
A133: 铁路还贷
A134: 建设项目铺底资金
A135: 勘测设计
A136: 注册资本金
A137: 周转资金
A138: 其他铁路建设基金支出
A139: 船舶油污损害赔偿基金支出 | B139: =SUM(B140:B145) -> 0
A140: 应急处置费用
A141: 控制清除污染
A142: 损失补偿
A143: 生态恢复
A144: 监视监测
A145: 其他船舶油污损害赔偿基金支出
A146: 民航发展基金支出 | B146: =SUM(B147:B154) -> 0
A147: 民航机场建设
A148: 空管系统建设
A149: 民航安全
A150: 航线和机场补贴
A151: 民航节能减排
A152: 通用航空发展
A153: 征管经费
A154: 其他民航发展基金支出
A155: 海南省高等级公路车辆通行附加费对应专项债务收入安排的支出 | B155: =SUM(B156:B157) -> 0
A156: 公路建设
A157: 其他海南省高等级公路车辆通行附加费对应专项债务收入安排的支出
A158: 政府收费公路专项债券收入安排的支出 | B158: =SUM(B159:B160) -> 0
A159: 公路建设
A160: 其他政府收费公路专项债券收入安排的支出
A161: 车辆通行费对应专项债务收入安排的支出
A162: 港口建设费对应专项债务收入安排的支出 | B162: =SUM(B163:B165) -> 0
A163: 港口设施
A164: 航运保障系统建设
A165: 其他港口建设费对应专项债务收入安排的支出
A166: 六、资源勘探工业信息等支出 | B166: =B167 -> 0
A167: 农网还贷资金支出 | B167: =SUM(B168:B169) -> 0
A168: 地方农网还贷资金支出
A169: 其他农网还贷资金支出
A170: 七、其他支出 | B170: =B171+B175+B184 -> 17200
A171: 其他政府性基金及对应专项债务收入安排的支出 | B171: 17200
A172: 其他政府性基金安排的支出 | B172: 17200
A173: 其他地方自行试点项目收益专项债券收入安排的支出
A174: 其他政府性基金债务收入安排的支出
A175: 彩票发行销售机构业务费安排的支出 | B175: =SUM(B176:B183) -> 0
A176: 福利彩票发行机构的业务费支出
A177: 体育彩票发行机构的业务费支出
A178: 福利彩票销售机构的业务费支出
A179: 体育彩票销售机构的业务费支出
A180: 彩票兑奖周转金支出
A181: 彩票发行销售风险基金支出
A182: 彩票市场调控资金支出
A183: 其他彩票发行销售机构业务费安排的支出
A184: 彩票公益金安排的支出 | B184: =SUM(B185:B194) -> 0
A185: 用于社会福利的彩票公益金支出
A186: 用于体育事业的彩票公益金支出
A187: 用于教育事业的彩票公益金支出
A188: 用于红十字事业的彩票公益金支出
A189: 用于残疾人事业的彩票公益金支出
A190: 用于文化事业的彩票公益金支出
A191: 用于扶贫的彩票公益金支出
A192: 用于法律援助的彩票公益金支出
A193: 用于城乡医疗救助的的彩票公益金支出
A194: 用于其他社会公益事业的彩票公益金支出
A195: 八、债务付息支出 | B195: =SUM(B196:B211) -> 6500
A196: 海南省高等级公路车辆通行附加费债务付息支出
A197: 港口建设费债务付息支出
A198: 国家电影事业发展专项资金债务付息支出
A199: 国有土地使用权出让金债务付息支出 | B199: 800
A200: 农业土地开发资金债务付息支出
... 59 more rows

Sheet 表13.政府性基金预算本级支出表
A1: 表13
A2: 2025年政府性基金预算支出表
A3: （因我区镇办作为预算单位管理，本级支出与支出数一致）
B4: 单位：万元
A5: 项 目 | B5: 预算数
A6: 一、文化旅游体育与传媒支出 | B6: =B7+B13+B19 -> 0
A7: 国家电影事业发展专项资金安排的支出 | B7: =SUM(B8:B12) -> 0
A8: 资助国产影片放映
A9: 资助影院建设
A10: 资助少数民族语电影译制
A11: 购买农村电影公益性放映版权服务
A12: 其他国家电影事业发展专项资金支出
A13: 旅游发展基金支出 | B13: =SUM(B14:B18) -> 0
A14: 宣传促销
A15: 行业规划
A16: 旅游事业补助
A17: 地方旅游开发项目补助
A18: 其他旅游发展基金支出
A19: 国家电影事业发展专项资金对应专项债务收入安排的支出 | B19: =SUM(B20:B21) -> 0
A20: 资助城市影院
A21: 其他国家电影事业发展专项资金对应专项债务收入支出
A22: 二、节能环保支出 | B22: =B23+B28 -> 0
A23: 可再生能源电价附加收入安排的支出 | B23: =SUM(B24:B27) -> 0
A24: 风力发电补助
A25: 太阳能发电补助
A26: 生物质能发电补助
A27: 其他可再生能源电价附加收入安排的支出
A28: 废弃电器电子产品处理基金支出 | B28: =SUM(B29:B32) -> 0
A29: 回收处理费用补贴
A30: 信息系统建设
A31: 基金征管经费
A32: 其他废弃电器电子产品处理基金支出
A33: 三、城乡社区支出 | B33: 24093
A34: 国有土地使用权出让收入安排的支出 | B34: 22692
A35: 征地和拆迁补偿支出 | B35: 15201
A36: 土地开发支出
A37: 城市建设支出 | B37: 5635
A38: 农村基础设施建设支出 | B38: 1856
A39: 补助被征地农民支出
A40: 土地出让业务支出
A41: 廉租住房支出
A42: 支付破产或改制企业职工安置费
A43: 棚户区改造支出
A44: 公共租赁住房支出
A45: 保障性住房租金补贴
A46: 其他国有土地使用权出让收入安排的支出
A47: 国有土地收益基金安排的支出 | B47: =SUM(B48:B50) -> 0
A48: 征地和拆迁补偿支出
A49: 土地开发支出
A50: 其他国有土地收益基金支出
A51: 农业土地开发资金安排的支出
A52: 城市基础设施配套费安排的支出 | B52: 600
A53: 城市公共设施
A54: 城市环境卫生
A55: 公有房屋
A56: 城市防洪
A57: 其他城市基础设施配套费安排的支出 | B57: 600
A58: 污水处理费收入安排的支出 | B58: 800
A59: 污水处理设施建设和运营
A60: 代征手续费
A61: 其他污水处理费安排的支出 | B61: 800
A62: 土地储备专项债券收入安排的支出 | B62: =SUM(B63:B65) -> 0
A63: 征地和拆迁补偿支出
A64: 土地开发支出
A65: 其他土地储备专项债券收入安排的支出
A66: 棚户区改造专项债券收入安排的支出 | B66: =SUM(B67:B69) -> 0
A67: 征地和拆迁补偿支出
A68: 土地开发支出
A69: 其他棚户区改造专项债券收入安排的支出
A70: 城市基础设施配套费对应专项债务收入安排的支出 | B70: =SUM(B71:B75) -> 0
A71: 城市公共设施
A72: 城市环境卫生
A73: 公有房屋
A74: 城市防洪
A75: 其他城市基础设施配套费对应专项债务收入安排的支出
A76: 污水处理费对应专项债务收入安排的支出 | B76: =SUM(B77:B78) -> 0
A77: 污水处理设施建设和运营
A78: 其他污水处理费对应专项债务收入安排的支出
A79: 国有土地使用权出让收入对应专项债务收入安排的支出 | B79: =SUM(B80:B87) -> 0
A80: 征地和拆迁补偿支出
A81: 土地开发支出
A82: 城市建设支出
A83: 农村基础设施建设支出
A84: 廉租住房支出
A85: 棚户区改造支出
A86: 公共租赁住房支出
A87: 其他国有土地使用权出让收入对应专项债务收入安排的支出
A88: 四、农林水支出 | B88: =B89+B99+B94+B104+B108+B112 -> 0
A89: 大中型水库库区基金安排的支出 | B89: =SUM(B90:B93) -> 0
A90: 基础设施建设和经济发展
A91: 解决移民遗留问题
A92: 库区防护工程维护
A93: 其他大中型水库库区基金支出
A94: 三峡水库库区基金支出 | B94: =SUM(B95:B98) -> 0
A95: 基础设施建设和经济发展
A96: 解决移民遗留问题
A97: 库区维护和管理
A98: 其他三峡水库库区基金支出
A99: 国家重大水利工程建设基金安排的支出 | B99: =SUM(B100:B103) -> 0
A100: 南水北调工程建设
A101: 三峡后续工作
A102: 地方重大水利工程建设
A103: 其他重大水利工程建设基金支出
A104: 大中型水库移民后期扶持基金支出
A105: 移民补助
A106: 基础设施建设和经济发展
A107: 其他大中型水库移民后期扶持基金支出
A108: 小型水库移民扶助基金安排的支出
A109: 移民补助
A110: 基础设施建设和经济发展
A111: 其他小型水库移民扶助基金支出
A112: 小型水库移民扶助基金对应专项债务收入安排的支出
A113: 基础设施建设和经济发展
A114: 其他小型水库移民扶助基金对应专项债务收入安排的支出
A115: 五、交通运输支出 | B115: =B116+B121+B126+B131+B140+B147+B156+B159+B162+B163 -> 0
A116: 海南省高等级公路车辆通行附加费安排的支出 | B116: =SUM(B117:B120) -> 0
A117: 公路建设
A118: 公路养护
A119: 公路还贷
A120: 其他海南省高等级公路车辆通行附加费安排的支出
A121: 车辆通行费安排的支出 | B121: =SUM(B122:B125) -> 0
A122: 公路还贷
A123: 政府还贷公路养护
A124: 政府还贷公路管理
A125: 其他车辆通行费安排的支出
A126: 港口建设费安排的支出 | B126: =SUM(B127:B130) -> 0
A127: 港口设施
A128: 航道建设和维护
A129: 航运保障系统建设
A130: 其他港口建设费安排的支出
A131: 铁路建设基金支出 | B131: =SUM(B132:B139) -> 0
A132: 铁路建设投资
A133: 购置铁路机车车辆
A134: 铁路还贷
A135: 建设项目铺底资金
A136: 勘测设计
A137: 注册资本金
A138: 周转资金
A139: 其他铁路建设基金支出
A140: 船舶油污损害赔偿基金支出 | B140: =SUM(B141:B146) -> 0
A141: 应急处置费用
A142: 控制清除污染
A143: 损失补偿
A144: 生态恢复
A145: 监视监测
A146: 其他船舶油污损害赔偿基金支出
A147: 民航发展基金支出 | B147: =SUM(B148:B155) -> 0
A148: 民航机场建设
A149: 空管系统建设
A150: 民航安全
A151: 航线和机场补贴
A152: 民航节能减排
A153: 通用航空发展
A154: 征管经费
A155: 其他民航发展基金支出
A156: 海南省高等级公路车辆通行附加费对应专项债务收入安排的支出 | B156: =SUM(B157:B158) -> 0
A157: 公路建设
A158: 其他海南省高等级公路车辆通行附加费对应专项债务收入安排的支出
A159: 政府收费公路专项债券收入安排的支出 | B159: =SUM(B160:B161) -> 0
A160: 公路建设
A161: 其他政府收费公路专项债券收入安排的支出
A162: 车辆通行费对应专项债务收入安排的支出
A163: 港口建设费对应专项债务收入安排的支出 | B163: =SUM(B164:B166) -> 0
A164: 港口设施
A165: 航运保障系统建设
A166: 其他港口建设费对应专项债务收入安排的支出
A167: 六、资源勘探工业信息等支出 | B167: =B168 -> 0
A168: 农网还贷资金支出 | B168: =SUM(B169:B170) -> 0
A169: 地方农网还贷资金支出
A170: 其他农网还贷资金支出
A171: 七、其他支出 | B171: =B172+B176+B185 -> 17200
A172: 其他政府性基金及对应专项债务收入安排的支出 | B172: 17200
A173: 其他政府性基金安排的支出 | B173: 17200
A174: 其他地方自行试点项目收益专项债券收入安排的支出
A175: 其他政府性基金债务收入安排的支出
A176: 彩票发行销售机构业务费安排的支出 | B176: =SUM(B177:B184) -> 0
A177: 福利彩票发行机构的业务费支出
A178: 体育彩票发行机构的业务费支出
A179: 福利彩票销售机构的业务费支出
A180: 体育彩票销售机构的业务费支出
A181: 彩票兑奖周转金支出
A182: 彩票发行销售风险基金支出
A183: 彩票市场调控资金支出
A184: 其他彩票发行销售机构业务费安排的支出
A185: 彩票公益金安排的支出 | B185: =SUM(B186:B195) -> 0
A186: 用于社会福利的彩票公益金支出
A187: 用于体育事业的彩票公益金支出
A188: 用于教育事业的彩票公益金支出
A189: 用于红十字事业的彩票公益金支出
A190: 用于残疾人事业的彩票公益金支出
A191: 用于文化事业的彩票公益金支出
A192: 用于扶贫的彩票公益金支出
A193: 用于法律援助的彩票公益金支出
A194: 用于城乡医疗救助的的彩票公益金支出
A195: 用于其他社会公益事业的彩票公益金支出
A196: 八、债务付息支出 | B196: =SUM(B197:B212) -> 6500
A197: 海南省高等级公路车辆通行附加费债务付息支出
A198: 港口建设费债务付息支出
A199: 国家电影事业发展专项资金债务付息支出
A200: 国有土地使用权出让金债务付息支出 | B200: 800
... 60 more rows

Sheet 表14.政府性基金转移支付预算项目表
A1: 表14
A2: 2024年政府性基金转移支付预算分项目表
A3: (因我区镇办作为预算单位管理，此表为空）
B4: 单位：万元
A5: 项 目 | B5: 金 额

Sheet 表15.政府性基金转移支付预算分地区表
A1: 表15
A2: 2025年政府性基金转移支付预算分地区表
A3: (因我区镇办作为预算单位管理，此表为空）
B4: 单位：万元
A5: 地区 | B5: 金额

Sheet 表16.政府专项债券限额和余额情况表
A1: 表16
A2: 2024年君山区政府专项债务限额和余额情况表
C3: 单位：万元
A4: 单位 | B4: 专项债务限额 | C4: 专项债务余额
A6: 君山区 | B6: 181560 | C6: 181558

Sheet 表17.国有资本经营预算收入表
A1: 表17
A2: 2025年国有资本经营预算收入表
A3: （本表无数据）
A4: 项 目 | B4: 预算数
A5: 一、上年结余
A6: 二、当年国有资产收益收入合计
A7: （一）资本性收益
A8: 1、国有独资企业、国有独资公司应上缴的利润
A9: 2、国有控股、参股公司中市属国有股权应分得的股利、红利收入
A10: 3、其他单位因占有使用市属国有资产形成的应上缴的国有资产占用费
A11: 4、其他按规定属于国有资产的资本性收益
A12: （二）产权转让收入、出租出借收入
A13: 1、转让国有独资企业、国有独资公司产权的净收入
A14: 2、转让国有控股、参股公司中市属国有股股权及配股权的净收入
A15: 3、转让其他市属国有资产的净收入
A16: 4、其他按规定属于国有资产的产权转让净收入
A17: 5、出租出借收入
A18: ㈢ 上级补助收入
A19: ㈣ 其他收入
A31: 此表无数据，为空表

Sheet 表18.国有资本经营预算支出表
A1: 表18
A2: 2025年国有资本经营预算支出表
A3: （本表无数据）
A4: 项 目 | B4: 预算数
A5: 三、当年国有资产收益支出合计
A6: （一）资本性支出
A7: 1、新设企业注册资本金投入
A8: 2、现有企业增加注册资本金
A9: 3、购买企业股权
A10: 4、其他资本性支出
A11: （二）费用性支出
A12: 1、改制成本支出
A13: 2、监管费用支出
A14: 3、其他支出
A15: （三）补助下级支出
A17: ㈣ 其他支出
A18: 1、投资项目前期费用
A19: 2、派出的董事、监事、财务总监等人员的工资和经费
A20: 3、企业经营者奖励费用
A21: 4、监管费用
A22: 5、其他费用
A23: 其中：国企改革改制工作经费
A30: 四、当年预算资金结余

Sheet 表19.社会保险基金收入预算表
A1: 表19
A2: 2025年社会保险基金收入预算表
D3: 单位：万元
A4: 项 目 | B4: 合计 | C4: 城乡居民基本养老保险基金 | D4: 机关事业养老保险基金
A5: 一、收入合计 | B5: =SUM(C5:D5) -> 26,642 | C5: =SUM(C6:C11) -> 5,280 | D5: =SUM(D6:D11) -> 21,362
A6: 其中:保险费收入 | B6: =SUM(C6:D6) -> 10,379 | C6: 2,830 | D6: 7,549
A7: 利息收入 | B7: 67 | C7: 28 | D7: 39
A8: 财政补贴收入 | B8: 16,050 | C8: 2,395 | D8: 13,655
A9: 委托投资收益 | B9: 0
A10: 其他收入 | B10: 1 | C10: 1
A11: 转移收入 | B11: 146 | C11: 26 | D11: 120

Sheet 表20.社会保险基金支出预算表
A1: 表20
A2: 2025年社会保险基金支出预算表
D3: 单位：万元
A4: 项 目 | B4: 合计 | C4: 城乡居民基本养老保险基金 | D4: 机关事业养老保险基金
A5: 支出合计 | B5: =SUM(C5:D5) -> 23,941 | C5: =SUM(C6:C8) -> 2,739 | D5: =SUM(D6:D8) -> 21,202
A6: 其中:社会保险待遇支出 | B6: =SUM(C6:D6) -> 19,667 | C6: 2,630 | D6: 17,037
A7: 其他支出 | B7: =SUM(C7:D7) -> 4,048 | C7: 2 | D7: 4,046
A8: 转移支出 | B8: =SUM(C8:D8) -> 227 | C8: 107 | D8: 120

Sheet 表21.地方债务限额余额情况表
A1: 表21
A2: 2024年君山区地方债务限额余额表
G3: 单位：万元
A4: 单位 | B4: 2024年政府债务限额 | E4: 2024年政府债务余额
B5: 合计 | C5: 一般 | D5: 专项 | E5: 合计 | F5: 一般 | G5: 专项
A7: 君山区 | B7: 360764 | C7: 179204 | D7: 181560 | E7: 357246 | F7: 175688 | G7: 181558

Sheet 表22.地方政府债券发行、还本付息情况表
A1: 表22
A2: 2024年末地方政府债券发行、还本付息情况表
R3: 单位：万元
A4: 单位 | B4: 地方政府债券发行情况 | N4: 地方政府还本付息情况
B5: 合计 | F5: 一般债券 | J5: 专项债券 | N5: 还本 | Q5: 付息
B6: 合计 | C6: 新增 | D6: 置换 | E6: 再融资 | F6: 小计 | G6: 新增 | H6: 置换 | I6: 再融资 | J6: 小计 | K6: 新增 | L6: 置换 | M6: 再融资 | N6: 合计 | O6: 一般债券 | P6: 专项债券 | Q6: 合计 | R6: 一般债券 | S6: 专项债券
A7: 君山区 | B7: 70500 | C7: 22800 | D7: 16900 | E7: 30800 | F7: 22000 | G7: 3600 | H7: 0 | I7: 18400 | J7: 48500 | K7: 19200 | L7: 16900 | M7: 12400 | N7: 34300 | O7: 21900 | P7: 12400 | Q7: 10342 | R7: 5581 | S7: 4761

Sheet 表23.新增债券资金使用安排情况表
A1: 表23
A2: 2024年新增债券资金使用安排情况表
D3: 单位：万元
A4: 单位编码 | B4: 单位名称 | C4: 金额 | D4: 摘要
A5: 一、 | B5: 一般债券 | C5: 3600
A6: 149001 | B6: 岳阳市君山区交通运输局 | C6: 1500 | D6: 解决君山区滨江路及配套设施工程项目一期（G240）君山绕城公路工程款
A7: 149001 | B7: 岳阳市君山区交通运输局 | C7: 70 | D7: 解决交通建设工程款及项目前期经费(S304建新口至南堤项目50万元，创“四好”农村公路（省级示范片附属工程项目20万元）)
A8: 149001 | B8: 岳阳市君山区交通运输局 | C8: 80 | D8: 解决S304君山区建新口至南堤拐公路（三标段）工程款
A9: 127006 | B9: 岳阳市君山区广兴洲中学 | C9: 30 | D9: 2024第一批地方新增一般债务限额（义务教育基本办学条件三年攻坚项目）
A10: 127003 | B10: 岳阳市君山区君山小学 | C10: 10 | D10: 2024第一批地方新增一般债务限额（义务教育基本办学条件三年攻坚项目）
A11: 127014 | B11: 岳阳市君山区许市镇中心小学 | C11: 15 | D11: 2024第一批地方新增一般债务限额（义务教育基本办学条件三年攻坚项目）
A12: 127008 | B12: 岳阳市君山区钱粮湖镇中学 | C12: 10 | D12: 2024第一批地方新增一般债务限额（义务教育基本办学条件三年攻坚项目）
A13: 127005 | B13: 岳阳市君山区柳林洲镇中心学校 | C13: 10 | D13: 2024第一批地方新增一般债务限额（义务教育基本办学条件三年攻坚项目）
A14: 127011 | B14: 岳阳市君山区钱粮湖实验小学 | C14: 25 | D14: 2024第一批地方新增一般债务限额（义务教育基本办学条件三年攻坚项目）
A15: 127003 | B15: 岳阳市君山区君山小学 | C15: 88.1094 | D15: 2024第一批地方新增一般债务限额（义务教育基本办学条件三年攻坚项目）
A16: 127007 | B16: 岳阳市君山区许市镇中学 | C16: 123.9656 | D16: 2024第一批地方新增一般债务限额（义务教育基本办学条件三年攻坚项目）
A17: 127011 | B17: 岳阳市君山区钱粮湖实验小学 | C17: 46.9116 | D17: 2024第一批地方新增一般债务限额（义务教育基本办学条件三年攻坚项目）
A18: 127008 | B18: 岳阳市君山区钱粮湖镇中学 | C18: 86.6758 | D18: 2024第一批地方新增一般债务限额（义务教育基本办学条件三年攻坚项目）
A19: 127005 | B19: 岳阳市君山区柳林洲镇中心学校 | C19: 32.6512 | D19: 2024第一批地方新增一般债务限额（义务教育基本办学条件三年攻坚项目）
A20: 127014 | B20: 岳阳市君山区许市镇中心小学 | C20: 15.5709 | D20: 2024第一批地方新增一般债务限额（义务教育基本办学条件三年攻坚项目）
A21: 127009 | B21: 岳阳市君山区良心堡镇中学 | C21: 259.9249 | D21: 2024第一批地方新增一般债务限额（义务教育基本办学条件三年攻坚项目）
A22: 127001 | B22: 岳阳市君山区教育局 | C22: 0.98 | D22: 2024第一批地方新增一般债务限额（义务教育基本办学条件三年攻坚项目）
A23: 127004 | B23: 岳阳市君山区西城街道办事处中心小学 | C23: 22.0266 | D23: 2024第一批地方新增一般债务限额（义务教育基本办学条件三年攻坚项目）
A24: 127013 | B24: 岳阳市第十六中学 | C24: 34.416 | D24: 2024第一批地方新增一般债务限额（义务教育基本办学条件三年攻坚项目）
A25: 127012 | B25: 岳阳市君山区职业技术学校 | C25: 88.768 | D25: 2024第一批地方新增一般债务限额（义务教育基本办学条件三年攻坚项目）
A26: 149001 | B26: 岳阳市君山区交通运输局 | C26: 150 | D26: 解决君山区S304建新口至南堤拐公路工程尾款
A27: 149001 | B27: 岳阳市君山区交通运输局 | C27: 300 | D27: 2024年第二批地方新增一般债务限额（君山区S304建新口至南堤拐公路工程尾款）
A28: 149001 | B28: 岳阳市君山区交通运输局 | C28: 300 | D28: 滨江路及配套设施工程
A29: 127001 | B29: 岳阳市君山区教育局 | C29: 100 | D29: 义务教育基本办学条件三年攻坚项目
A30: 149001 | B30: 岳阳市君山区交通运输局 | C30: 200 | D30: 滨江路及配套设施工程
A32: 二、 | B32: 专项债券 | C32: =SUM(C33:C36) -> 19200
A33: 204001 | B33: 君山区广兴洲镇人民政府 | C33: 3000 | D33: 君山区养老服务中心建设项目
A34: 900023 | B34: 岳阳市君山区城市建设投资有限公司 | C34: 4400 | D34: 隐性债务还本支出
A35: 131001 | B35: 岳阳市君山区文化旅游广电体育局 | C35: 3000 | D35: 江豚湾游客集散中心项目
A36: 144001 | B36: 岳阳市君山区农业农村局 | C36: 8800 | D36: 君山区芥菜种植与食品加工产业融合项目

Sheet 表24.地方政府债券还本付息预算表
A1: 表24
A2: 2025年度地方政府债券还本付息预算表
G3: 单位：万元
A4: 单位 | B4: 地方政府债券还本 | E4: 地方政府付息
B5: 合计 | C5: 一般 | D5: 专项 | E5: 合计 | F5: 一般 | G5: 专项
A6: 君山区 | B6: 14551 | C6: 14551 | D6: 0 | E6: 12000 | F6: 5500 | G6: 6500

Sheet 表25.“三公”经费预算表
A1: 表25
A2: 2025年君山区一般预算“三公”经费预算表
F3: 单位：万元
A4: 2025年预算数
A5: 合 计 | B5: 因公出国（境）费 | C5: 公务用车购置及运行费 | F5: 公务接待费
C6: 小计 | D6: 公务用车购置费 | E6: 公务用车运行费
A7: 339.48 | B7: 0 | C7: 204.05 | D7: 61 | E7: 143.05 | F7: 135.43
A8: 根据上级和区政府部署安排，经区财政局汇总，君山区行政单位（含参照公务员法管理的事业单位）、事业单位和其他单位使用当年一般公共预算拨款（包括一般公共预算经费拨款和纳入一般公共预算管理的非税收入）安排的2025年“三公”经费预算为339.48万元，同比下降5.03% ，其中：公务接待费135.43万元；因公出国（境）费0万元；公务用车购置及运行维护费204.05万元。2025年君山区“三公”经费预算数同比上年下降18万元。

Sheet 表26.预算绩效管理工作要点
A1: 表26
A2: 岳阳区君山区2025年预算绩效管理工作方案
A4: 2025年度君山区预算绩效管理工作方案 根据省、市全面实施预算绩效管理总体目标任务，结合我区实际，特制定本工作方案。 一、工作目标 贯彻落实全省财政工作会议精神，以全面提升财政治理效能为主线，进一步强化绩效导向，真正把绩效理念提升为绩效行动。,筑牢绩效管理工作基础，硬化绩效管理责任约束，强化财审联动，主动接受人大监督，推动绩效管理扩面提质，财政资源配置效率和使用效益进一步提高，力争到2025年底基本建成全区全方位、全过程、全覆盖的预算绩效管理体系。 二、工作内容 （一）开展绩效主题培训（1-10月） 以落实《办法》及年度目标为主要内容，组织全区预算绩效管理系统开展全员多元化培训。 1.组织参加上级培训（3-5月）。按照市局培训计划参加绩效管理现场培训，组织预算单位直接参加培训或组织区级专场培训。 2.走出去学习（6-10月）。根据省市财政审计系统安排的学习计划，组织绩效管理团队分批次赴外研讨学习。 （二）完善绩效管理制度（6-12月） 坚持绩效导向，对照省市级构建的预算绩效管理制度体系，进一步健全完善区级预算绩效管理工作机制和制度办法，引导和规范第三方参与绩效管理行为，强化绩效管理责任约束机制。 （三）加强绩效目标管理（全年） 前移绩效管理关口，试点拓展推进事前绩效评估,做优绩效目标管理，力求预算绩效目标与预算编制同步运行。 1.绩效目标申报审核（2024年12月） 2025年度预算绩效目标申报与审核，已于2024年12月份与部门预算编制同步启动。财政部门组织对预算绩效目标申报的跟踪审核，并指导录入预算一体化系统，必要时应组织第三方对新增重大政策和项目、基建投资项目独立开展事前绩效评估与绩效目标跟踪评价，申报质量及评价结果将作为预算编制依据。 2.绩效目标批复与公开（1-6月） 试点向区人大报送2025年度一般公共预算编制所涉及的专项支出预算绩效目标编制(草案)。待2025年度部门预算经区人大审查批准后，对标“四本”预算涉及的所有预算绩效目标与预算同步批复。预算单位在公开部门预决算时，应同步公开重点支出项目绩效目标。 （四）实施绩效跟踪监控（全年） 围绕绩效目标的实现程度和预算执行的时效性，对资金绩效运行情况实行“双监控”,实施部门整体和项目支出绩效监控全覆盖，发现问题偏差应给予及时纠正。 1.部门绩效运行监控（5-11月） 预算单位自行开展部门整体支出和项目支出绩效运行监控。并将9月底的监控情况，在10月份后五个工作日内，向财政部门报送绩效监控表，其中部门整体支出和30万以上项目支出需要报送纸质档和电子档监控表。 2.重点绩效跟踪监控（9-12月） 财政部门组织对预算单位报送的绩效运行监控情况，按监控节点进行审核和汇总，视情况选取部分重点支出的政策与项目委托第三方进行重点绩效监控，监控情况并入年度本级综合绩效评价报告，并督导将其监控结果与预算进度安排挂钩。 （五）财政支出绩效评价（4-12月） 财政支出绩效评价与预决算同步实施，全面考量所有财政资金使用的产出和效益。 1.预算单位绩效自评（3-5月） 预算单位组织对2024年度部门整体支出和项目支出开展绩效自评，撰写自评报告。自评范围应覆盖本级全部预算资金（部门整体支出和30万元以上项目支出）；自评材料及附件应于5月10日前报送区财政部门审核。在自评基础上，预算单位应针对上级管理部门及年度绩效管理要求，自行选择1-2个支出项目委托第三方开展部门重点绩效评价或重点绩效监控。针对预算单位自行开展的绩效评价报告质量，财政部门再组织第三方实施跟踪再评价；预算单位应于6月30日前将自评报告在区政府网站专栏公开。 2.财政重点绩效评价（6-12月） 财政重点绩效评价将“扩面提质”再升级，应对标省厅、市局考核要求，延伸择选涉粮资金、民生保障与财政奖补资金、政府债务以及涉及社会关注等重点支出项目。于5月底前将重点绩效评价选项（草案）报同级政府审定；7月底前按程序组织第三方开展现场绩效评价；11月底前完成绩效评价报告，并归集整编2025年度本级财政支出绩效评价工作情况综合报告，上报同级政府、人大及上级主管部门。 （六）强化评价结果应用（全年） 绩效评价有结果，评价结果有应用，逐步实施“五挂钩五约束”机制，是绩效管理实施关键，是全面实施预算绩效管理的责任落脚点。 1.落实评价结果应用整改机制（1-5月） 严格按照《岳阳市预算绩效管理实施办法》要求,健全绩效评价结果反馈和绩效问题整改主体责任机制。区财政局将协同区审计局、驻局纪检组“三组合”成立整改跟踪督导组，对标2023年绩效评价报告反馈11家被评价项目单位的问题点，逐一反馈、回头看，再问效。 2.落实绩效评价结果公开机制（1-6月） 按照“谁花钱谁担责、谁实施谁公开”原则，预算部门应针对2024年度绩效自评、监控和绩效评价发现的问题进行整改，评价结果及整改应用情况随部门决算同步公开。财政部门应归集上报的年度绩效评价结果及应用整改情况的报告，在区政府网站及时公开，做到“非涉密、全公开”，主动接受社会公众监督。 3.落实与预算安排相结合机制（1-12月） 进一步完善绩效评价结果与预算安排相结合机制，对绩效好的政策和项目原则上优先保障，对绩效一般的政策和项目督促整改，对低效无效资金一律削减或取消，对长期沉淀的资金一律收回。 4.落实省市政府绩效考评机制（12月底） 进一步深化预算绩效管理和政府绩效评估有机结合机制。做好2025年省市综合绩效评估对接工作，完善预算部门有关绩效管理考核指标。按绩效考评要求向市财政局报送年度绩效总结与佐证材料。区财政局将对标采集的考评数据上报区政府，并提请对前期绩效管理考评低效单位实施整改问责机制。 5.落实财政审计协同联动机制（全年） 结合区审计局年度审计计划，商定重点选项开展绩效评价，并将绩效管理作为年度审计重点内容,实时开展财审联合行动。针对绩效管理实施过程中发现的问题，财审协同交流成果互用，实现数据和信息共享。 三、工作要求 1.持续推进。坚持以绩效目标为龙头、执行监控为支撑、结果应用为核心，全面构建预算绩效管理问效闭环。实施环节所涉及的事前绩效评估、绩效目标管理、绩效运行监控、绩效评价及其结果应用等系列常态化工作，将按照省市相关制度及明确的规定动作要求，分步骤对点对标执行。所有政府采购项目应按要求在系统中填报绩效目标和自评。 2.责任落实。各预算单位应进一步提高对全面实施预算绩效管理的重要性认识，切实担负全面绩效管理组织责任，发挥绩效管理主体作用；加强在人员、机构和经费方面的基础保障，优化工作流程，强化标准引领，确保全面预算绩效管理延伸至资金使用终端。

Sheet 表27.乡村振兴资金公示网址汇总表.
A1: 表27
A2: 2024年乡村振兴资金公示网址汇总表
A3: 项目名称 | B3: 网 址 | C3: 公示时间
A4: 乡村振兴资金网址： | B4: http://www.junshan.gov.cn/32415/40825/40890/40891/42952/index.htm
A5: 一、乡村振兴相关政策文件
A6: 省委省政府发布《关于全面推进乡村振兴 加快农业农村现代化的实施意见》 | B6: http://www.junshan.gov.cn/32415/40825/40890/40891/40893/content_1901883.html | C6: 2022-01-10
A8: 二、乡村振兴资金分配方案
A9: 2024年市级财政衔接资金分配计划（十三） 君乡发〔2024〕13号 | B9: https://www.junshan.gov.cn/32415/40825/40890/40891/42952/content_2262137.html | C9: 2024-12-20
A10: 2024年市级财政衔接资金分配计划（十二） 君乡发〔2024〕12号 | B10: https://www.junshan.gov.cn/32415/40825/40890/40891/42952/content_2260637.html | C10: 2024-12-16
A11: 2024年区级财政衔接资金分配计划（十一） 君乡发〔2024〕11号 | B11: https://www.junshan.gov.cn/32415/40825/40890/40891/42952/content_2252204.html | C11: 2024-11-04
A12: 2024年省级财政衔接资金分配计划（十） 君乡发〔2024〕10号 | B12: https://www.junshan.gov.cn/32415/40825/40890/40891/42952/content_2242985.html | C12: 2024-10-08
A13: 2024年省级财政衔接资金分配计划（九） 君乡发〔2024〕9号 | B13: https://www.junshan.gov.cn/32415/40825/40890/40891/42952/content_2242986.html | C13: 2024-09-20
A14: 2024年省级财政衔接资金分配计划（八） 君乡发〔2024〕8号 | B14: https://www.junshan.gov.cn/32415/40825/40890/40891/42952/content_2229581.html | C14: 2024-09-02
A15: 2024年区级财政衔接资金分配计划（七） 君乡发〔2024〕7号 | B15: https://www.junshan.gov.cn/32415/40825/40890/40891/42952/content_2229579.html | C15: 2024-08-30
A16: 2024年省级财政衔接资金分配计划（六） 君乡发〔2024〕6号 | B16: https://www.junshan.gov.cn/32415/40825/40890/40891/42952/content_2229577.html | C16: 2024-08-26
A17: 2024年省级财政衔接资金分配计划（五） 君乡发〔2024〕5号 | B17: https://www.junshan.gov.cn/32415/40825/40890/40891/42952/content_2229406.html | C17: 2024-08-06
A18: 2024年省级财政衔接资金分配计划（四） 君乡发〔2024〕4号 | B18: https://www.junshan.gov.cn/32415/40825/40890/40891/42952/content_2229401.html | C18: 2024-07-24
A19: 2024年中央财政衔接资金分配计划（三） 君乡发〔2024〕3号 | B19: https://www.junshan.gov.cn/32415/40825/40890/40891/42952/content_2229407.html | C19: 2024-06-20
A20: 2024年中央财政衔接资金分配计划（二） 君乡发〔2024〕2号 | B20: https://www.junshan.gov.cn/32415/40825/40890/40891/42952/content_2189756.html | C20: 2024-03-28
A21: 2024年中央财政衔接资金分配计划（一） 君乡发〔2024〕1号 | B21: https://www.junshan.gov.cn/32415/40825/40890/40891/42952/content_2189744.html | C21: 2024-02-28
A22: 2023年市级财政衔接资金分配计划（十三） 君乡发〔2023〕18号 | B22: https://www.junshan.gov.cn/32415/40825/40890/40891/42952/content_2145278.html | C22: 2023-12-13
A24: 三、乡村振兴项目库
A25: 君山区2025年度拟入库项目审定情况公告 | B25: https://www.junshan.gov.cn/32415/40825/40890/40891/42952/content_2253832.html | C25: 2024-11-17
A26: 君山区2025年度拟入库项目审定情况公示 | B26: https://www.junshan.gov.cn/32415/40825/40890/40891/42952/content_2253830.html | C26: 2024-11-06
A27: 君山区2024年中动态调整拟入库项目审定情况公告 | B27: https://www.junshan.gov.cn/32415/40825/40890/40891/42952/content_2248288.html | C27: 2024-08-25
A28: 君山区2024年中动态调整拟入库项目审定情况公示 | B28: https://www.junshan.gov.cn/32415/40825/40890/40891/42952/content_2248287.html | C28: 2024-08-14
A29: 君山区2024年第一次动态调整入库项目审定情况公告 | B29: https://www.junshan.gov.cn/32415/40825/40890/40891/42952/content_2201739.html | C29: 2024-06-25
A30: 君山区2024年第一次动态调整入库项目审定情况公示 | B30: https://www.junshan.gov.cn/32415/40825/40890/40891/42952/content_2201736.html | C30: 2024-06-14
A31: 君山区2024年度拟入库项目审定情况公示 | B31: https://www.junshan.gov.cn/32415/40825/40890/40891/42952/content_2140531.html | C31: 2023-11-18
A32: 君山区2024年度拟入库项目审定情况公告 | B32: https://www.junshan.gov.cn/32415/40825/40890/40891/42952/content_2140533.html | C32: 2023-11-29
A34: 四、其他：
A35: 岳阳市君山区2024年度巩固脱贫攻坚成果和衔接乡村振兴项目计划完成情况公告 | B35: https://www.junshan.gov.cn/32415/40825/40890/40891/42952/content_2260640.html | C35: 2024-12-23
A36: 关于下达2025年财政衔接推进乡村振兴补助资金项目计划的公告 | B36: https://www.junshan.gov.cn/32415/40825/40890/40891/42952/content_2253825.html | C36: 2024-12-02
A37: 岳阳市君山区2023年度巩固脱贫攻坚成果和衔接乡村振兴项目计划完成情况公告 | B37: https://www.junshan.gov.cn/32415/40825/40890/40891/42952/content_2145277.html | C37: 2023-12-09
A38: 关于下达2024年财政衔接推进乡村振兴补助资金项目计划的公告 | B38: https://www.junshan.gov.cn/32415/40825/40890/40891/42952/content_2140535.html | C38: 2023-12-13
A39: 关于君山区2023年项目资产确权登记的公示 | B39: https://www.junshan.gov.cn/32415/40825/40890/40891/42952/content_2145280.html | C39: 2024-04-19
